[Event "*** Titled Tuesday Blitz"]
[Site "Chess.com"]
[Date "2021.02.02"]
[Round "1"]
[White "strelec64"]
[Black "Synctel"]
[Result "1-0"]
[WhiteElo "2494"]
[BlackElo "2008"]
[TimeControl "180+1"]
[EndTime "10:04:55 PST"]
[Termination "strelec64 won by resignation"]

1. d4 {[%clk 0:03:00.5]} 1... Nf6 {[%clk 0:02:56]} 2. Nf3 {[%clk 0:02:59.2]}
2... d5 {[%clk 0:02:55]} 3. c4 {[%clk 0:02:58.1]} 3... c6 {[%clk 0:02:49.1]} 4.
Nc3 {[%clk 0:02:55.5]} 4... e6 {[%clk 0:02:39.6]} 5. e3 {[%clk 0:02:54.2]} 5...
Nbd7 {[%clk 0:02:38.6]} 6. Bd3 {[%clk 0:02:52.3]} 6... dxc4 {[%clk 0:02:38.7]}
7. Bxc4 {[%clk 0:02:52.2]} 7... b5 {[%clk 0:02:39.3]} 8. Bd3 {[%clk 0:02:52.1]}
8... Bb7 {[%clk 0:02:39.9]} 9. O-O {[%clk 0:02:49.3]} 9... a6 {[%clk 0:02:40.2]}
10. e4 {[%clk 0:02:49.2]} 10... c5 {[%clk 0:02:40.3]} 11. d5 {[%clk 0:02:49.1]}
11... c4 {[%clk 0:02:37.1]} 12. Bc2 {[%clk 0:02:48]} 12... Nc5 {[%clk
0:02:36.3]} 13. Qe2 {[%clk 0:02:36.8]} 13... Be7 {[%clk 0:02:30.3]} 14. Be3
{[%clk 0:02:18]} 14... O-O {[%clk 0:02:26.3]} 15. Rad1 {[%clk 0:02:03.3]} 15...
b4 {[%clk 0:02:03.3]} 16. dxe6 {[%clk 0:01:58.7]} 16... Qc7 {[%clk 0:01:50.5]}
17. exf7+ {[%clk 0:01:58]} 17... Rxf7 {[%clk 0:01:51]} 18. Nd5 {[%clk 0:01:51]}
18... Nxd5 {[%clk 0:01:44.7]} 19. exd5 {[%clk 0:01:51]} 19... a5 {[%clk
0:01:24.9]} 20. d6 {[%clk 0:01:31.3]} 20... Bxd6 {[%clk 0:01:24.6]} 21. Ng5
{[%clk 0:01:30.2]} 21... Bxh2+ {[%clk 0:01:15.1]} 22. Kh1 {[%clk 0:01:30]} 22...
Re7 {[%clk 0:01:07.1]} 23. Qxc4+ {[%clk 0:01:09.7]} 23... Kh8 {[%clk 0:01:07.1]}
24. Qh4 {[%clk 0:01:09.3]} 1-0

[Event "*** Titled Tuesday Blitz"]
[Site "Chess.com"]
[Date "2021.02.02"]
[Round "1"]
[White "fabianvivasz"]
[Black "Frolyanov_D"]
[Result "0-1"]
[WhiteElo "2295"]
[BlackElo "2599"]
[TimeControl "180+1"]
[EndTime "10:04:58 PST"]
[Termination "Frolyanov_D won on time"]

1. e4 {[%clk 0:02:59.2]} 1... c5 {[%clk 0:02:59.2]} 2. Nc3 {[%clk 0:02:56.7]}
2... e6 {[%clk 0:02:59]} 3. Nf3 {[%clk 0:02:54.4]} 3... a6 {[%clk 0:02:58.9]} 4.
d4 {[%clk 0:02:54.6]} 4... cxd4 {[%clk 0:02:58.5]} 5. Nxd4 {[%clk 0:02:55.5]}
5... Qc7 {[%clk 0:02:56.8]} 6. Bd3 {[%clk 0:02:51.2]} 6... b5 {[%clk 0:02:55.7]}
7. O-O {[%clk 0:02:49.3]} 7... Nf6 {[%clk 0:02:54]} 8. Re1 {[%clk 0:02:38.4]}
8... d6 {[%clk 0:02:52.3]} 9. Bg5 {[%clk 0:02:27.3]} 9... Nbd7 {[%clk
0:02:51.5]} 10. Nd5 {[%clk 0:01:26.6]} 10... exd5 {[%clk 0:02:52.4]} 11. exd5+
{[%clk 0:01:26.8]} 11... Ne5 {[%clk 0:02:51.5]} 12. f4 {[%clk 0:01:12.5]} 12...
Bb7 {[%clk 0:02:13.6]} 13. fxe5 {[%clk 0:00:33.6]} 13... dxe5 {[%clk 0:02:14.5]}
14. c4 {[%clk 0:00:12.5]} 14... Bc5 {[%clk 0:02:11.6]} 15. Bf5 {[%clk
0:00:02.2]} 15... Kf8 {[%clk 0:02:03.2]} 16. Bxf6 {[%clk 0:00:02]} 16... Bxd4+
{[%clk 0:01:53.8]} 17. Kh1 {[%clk 0:00:01.9]} 17... gxf6 {[%clk 0:01:54.2]} 18.
Qh5 {[%clk 0:00:01.1]} 18... bxc4 {[%clk 0:01:50.2]} 0-1

[Event "*** Titled Tuesday Blitz"]
[Site "Chess.com"]
[Date "2021.02.02"]
[Round "1"]
[White "Marcin"]
[Black "CoachHakia"]
[Result "1-0"]
[WhiteElo "2516"]
[BlackElo "2145"]
[TimeControl "180+1"]
[EndTime "10:05:02 PST"]
[Termination "Marcin won by resignation"]

1. d4 {[%clk 0:03:00.9]} 1... Nf6 {[%clk 0:02:59.5]} 2. c4 {[%clk 0:03:01]} 2...
e6 {[%clk 0:02:58.7]} 3. Nf3 {[%clk 0:03:00.1]} 3... b6 {[%clk 0:02:57.1]} 4. g3
{[%clk 0:03:00]} 4... Bb7 {[%clk 0:02:56.5]} 5. Bg2 {[%clk 0:02:59.5]} 5... d6
{[%clk 0:02:56.3]} 6. O-O {[%clk 0:02:59.4]} 6... Be7 {[%clk 0:02:56.3]} 7. Nc3
{[%clk 0:02:59.8]} 7... Nbd7 {[%clk 0:02:56.2]} 8. Qc2 {[%clk 0:02:59.6]} 8...
O-O {[%clk 0:02:55.9]} 9. e4 {[%clk 0:02:59.1]} 9... c5 {[%clk 0:02:56.2]} 10.
d5 {[%clk 0:02:59.3]} 10... e5 {[%clk 0:02:13.3]} 11. Ne1 {[%clk 0:02:54.9]}
11... Ne8 {[%clk 0:02:08.5]} 12. Nd3 {[%clk 0:02:54.1]} 12... g6 {[%clk
0:02:05.6]} 13. f4 {[%clk 0:02:51.3]} 13... f5 {[%clk 0:01:55.1]} 14. fxe5
{[%clk 0:02:44.9]} 14... Nxe5 {[%clk 0:01:53.1]} 15. Nxe5 {[%clk 0:02:45.1]}
15... dxe5 {[%clk 0:01:54]} 16. exf5 {[%clk 0:02:45.7]} 16... gxf5 {[%clk
0:01:54]} 17. Rxf5 {[%clk 0:02:45.7]} 17... Ng7 {[%clk 0:01:28.7]} 18. Rxf8+
{[%clk 0:02:42.2]} 18... Bxf8 {[%clk 0:01:22.9]} 19. Be3 {[%clk 0:02:35.2]}
19... Bc8 {[%clk 0:00:53.4]} 20. Rf1 {[%clk 0:02:33.8]} 20... Rb8 {[%clk
0:00:44.7]} 21. Be4 {[%clk 0:02:27.5]} 21... h5 {[%clk 0:00:38.7]} 22. Bh7+
{[%clk 0:02:24.7]} 22... Kh8 {[%clk 0:00:38.5]} 23. Bg6 {[%clk 0:02:25.2]} 23...
h4 {[%clk 0:00:33.8]} 24. Ne4 {[%clk 0:02:21.6]} 24... b5 {[%clk 0:00:32.4]} 25.
Bg5 {[%clk 0:02:14.9]} 25... Be7 {[%clk 0:00:31]} 26. Bxe7 {[%clk 0:02:09.8]}
26... Qxe7 {[%clk 0:00:30.3]} 27. Rf7 {[%clk 0:02:10.3]} 27... Qd8 {[%clk
0:00:25.9]} 28. Qd2 {[%clk 0:02:10.3]} 1-0

[Event "*** Titled Tuesday Blitz"]
[Site "Chess.com"]
[Date "2021.02.02"]
[Round "1"]
[White "harvsp123"]
[Black "Kale36"]
[Result "0-1"]
[WhiteElo "2566"]
[BlackElo "2295"]
[TimeControl "180+1"]
[EndTime "10:05:03 PST"]
[Termination "Kale36 won on time"]

1. e4 {[%clk 0:03:00.9]} 1... Nc6 {[%clk 0:02:59.4]} 2. Nf3 {[%clk 0:03:00.3]}
2... d6 {[%clk 0:02:59.3]} 3. Bb5 {[%clk 0:02:59.5]} 3... a6 {[%clk 0:02:58.8]}
4. Ba4 {[%clk 0:02:58.6]} 4... b5 {[%clk 0:02:59]} 5. Bb3 {[%clk 0:02:58.6]}
5... Nf6 {[%clk 0:02:59.3]} 6. d3 {[%clk 0:02:55.5]} 6... Bg4 {[%clk 0:02:59.2]}
7. c3 {[%clk 0:02:40.4]} 7... e6 {[%clk 0:02:58.6]} 8. Nbd2 {[%clk 0:02:39.4]}
8... Be7 {[%clk 0:02:58.5]} 9. h3 {[%clk 0:02:39.1]} 9... Bh5 {[%clk 0:02:58.1]}
10. Nf1 {[%clk 0:02:39]} 10... O-O {[%clk 0:02:57.4]} 11. Ng3 {[%clk 0:02:38.9]}
11... Bg6 {[%clk 0:02:57]} 12. Qe2 {[%clk 0:02:23]} 12... Na5 {[%clk 0:02:44.8]}
13. Bc2 {[%clk 0:02:22.7]} 13... c5 {[%clk 0:02:44.9]} 14. O-O {[%clk
0:02:04.4]} 14... Nc6 {[%clk 0:02:39.8]} 15. Bd2 {[%clk 0:01:58.3]} 15... Qc7
{[%clk 0:02:33.9]} 16. Rfe1 {[%clk 0:01:48.3]} 16... Rfe8 {[%clk 0:02:26.5]} 17.
Rac1 {[%clk 0:01:45.7]} 17... Rad8 {[%clk 0:02:25.7]} 18. Bf4 {[%clk 0:01:44.7]}
18... e5 {[%clk 0:02:20.6]} 19. Be3 {[%clk 0:01:44.5]} 19... Bf8 {[%clk
0:02:16.9]} 20. Nh4 {[%clk 0:01:43]} 20... d5 {[%clk 0:02:15.9]} 21. Nhf5 {[%clk
0:01:40.4]} 21... d4 {[%clk 0:02:04.3]} 22. Bd2 {[%clk 0:01:39.9]} 22... Bxf5
{[%clk 0:01:58.3]} 23. Nxf5 {[%clk 0:01:39.4]} 23... g6 {[%clk 0:01:58.7]} 0-1

[Event "*** Titled Tuesday Blitz"]
[Site "Chess.com"]
[Date "2021.02.02"]
[Round "1"]
[White "noblerone"]
[Black "bocah_sakit"]
[Result "0-1"]
[WhiteElo "2425"]
[BlackElo "2825"]
[TimeControl "180+1"]
[EndTime "10:05:04 PST"]
[Termination "bocah_sakit won by resignation"]

1. d4 {[%clk 0:02:58.2]} 1... Nf6 {[%clk 0:02:59.8]} 2. Nf3 {[%clk 0:02:58.1]}
2... g6 {[%clk 0:03:00.3]} 3. Bg5 {[%clk 0:02:57.8]} 3... Bg7 {[%clk 0:03:00.9]}
4. Nbd2 {[%clk 0:02:57.8]} 4... O-O {[%clk 0:03:01.4]} 5. c3 {[%clk 0:02:57.2]}
5... d6 {[%clk 0:03:01.8]} 6. e4 {[%clk 0:02:57]} 6... c5 {[%clk 0:03:02.4]} 7.
dxc5 {[%clk 0:02:56.8]} 7... dxc5 {[%clk 0:03:02.3]} 8. Bc4 {[%clk 0:02:57.2]}
8... Nc6 {[%clk 0:03:01.1]} 9. O-O {[%clk 0:02:56.6]} 9... h6 {[%clk 0:03:01.2]}
10. Bh4 {[%clk 0:02:38.9]} 10... Nh5 {[%clk 0:03:00]} 11. h3 {[%clk 0:02:23.3]}
11... Qc7 {[%clk 0:02:53.1]} 12. Re1 {[%clk 0:02:15.7]} 12... g5 {[%clk
0:02:48.7]} 13. Nh2 {[%clk 0:02:05.5]} 13... Nf4 {[%clk 0:02:48.6]} 14. Bg3
{[%clk 0:02:02.6]} 14... b6 {[%clk 0:02:47.6]} 15. Bxf4 {[%clk 0:01:43.6]} 15...
Qxf4 {[%clk 0:02:46.4]} 16. Ndf1 {[%clk 0:01:33.9]} 16... Bb7 {[%clk 0:02:43.7]}
17. Qf3 {[%clk 0:01:27.1]} 17... Ne5 {[%clk 0:02:36.3]} 18. Qxf4 {[%clk
0:01:25.5]} 18... gxf4 {[%clk 0:02:37.2]} 19. Bb3 {[%clk 0:01:14]} 19... Nd3
{[%clk 0:02:34.9]} 20. Re2 {[%clk 0:01:13.1]} 20... Nxb2 {[%clk 0:02:31]} 21.
Rxb2 {[%clk 0:01:11]} 21... Bxc3 {[%clk 0:02:31.4]} 22. Rab1 {[%clk 0:01:06.7]}
22... Bxb2 {[%clk 0:02:30.7]} 23. Rxb2 {[%clk 0:01:06.9]} 23... Bxe4 {[%clk
0:02:31.2]} 24. Nd2 {[%clk 0:01:01.7]} 24... Bc6 {[%clk 0:02:29.2]} 25. Ng4
{[%clk 0:01:00.2]} 25... Kg7 {[%clk 0:02:27]} 26. Nf3 {[%clk 0:00:59]} 26...
Bxf3 {[%clk 0:02:22.4]} 27. gxf3 {[%clk 0:00:59.9]} 27... f6 {[%clk 0:02:21.4]}
28. Re2 {[%clk 0:00:54.9]} 28... e5 {[%clk 0:02:21.2]} 29. Nh2 {[%clk
0:00:52.8]} 29... Rad8 {[%clk 0:02:21.1]} 30. Nf1 {[%clk 0:00:51.8]} 30... b5
{[%clk 0:02:19.3]} 31. Nd2 {[%clk 0:00:46.1]} 31... c4 {[%clk 0:02:17.6]} 32.
Bc2 {[%clk 0:00:46.7]} 32... Rd4 {[%clk 0:02:15.2]} 33. Ne4 {[%clk 0:00:44]}
33... Rfd8 {[%clk 0:02:15.4]} 34. Kf1 {[%clk 0:00:40.5]} 34... b4 {[%clk
0:02:12.1]} 35. Nc5 {[%clk 0:00:38.1]} 35... Kf7 {[%clk 0:02:12.3]} 36. Bf5
{[%clk 0:00:35]} 36... Rd1+ {[%clk 0:02:12.2]} 37. Kg2 {[%clk 0:00:35.1]} 37...
Rg8+ {[%clk 0:02:12.6]} 38. Kh2 {[%clk 0:00:34.5]} 38... Rgg1 {[%clk 0:02:13.2]}
0-1

[Event "*** Titled Tuesday Blitz"]
[Site "Chess.com"]
[Date "2021.02.02"]
[Round "1"]
[White "Kovalchuk94"]
[Black "Abdimalik_Abdisalimov"]
[Result "1-0"]
[WhiteElo "2634"]
[BlackElo "2336"]
[TimeControl "180+1"]
[EndTime "10:05:05 PST"]
[Termination "Kovalchuk94 won by resignation"]

1. e4 {[%clk 0:02:59.3]} 1... e5 {[%clk 0:02:59.9]} 2. Nf3 {[%clk 0:02:58.8]}
2... Nc6 {[%clk 0:03:00]} 3. Bb5 {[%clk 0:02:58.5]} 3... Nf6 {[%clk 0:02:59.8]}
4. O-O {[%clk 0:02:56.8]} 4... Nxe4 {[%clk 0:02:58.6]} 5. Re1 {[%clk 0:02:56.2]}
5... Nd6 {[%clk 0:02:56.2]} 6. Nxe5 {[%clk 0:02:55.8]} 6... Be7 {[%clk
0:02:54.7]} 7. Bf1 {[%clk 0:02:54.9]} 7... Nxe5 {[%clk 0:02:52.6]} 8. Rxe5
{[%clk 0:02:54.3]} 8... O-O {[%clk 0:02:53]} 9. d4 {[%clk 0:02:54]} 9... Bf6
{[%clk 0:02:52.8]} 10. Re1 {[%clk 0:02:53.1]} 10... Re8 {[%clk 0:02:52.7]} 11.
Rxe8+ {[%clk 0:02:47.2]} 11... Qxe8 {[%clk 0:02:51.5]} 12. d5 {[%clk 0:02:43.9]}
12... b6 {[%clk 0:02:36.2]} 13. Nc3 {[%clk 0:02:36.1]} 13... Bb7 {[%clk
0:02:36]} 14. Bf4 {[%clk 0:02:34.3]} 14... Be5 {[%clk 0:02:27]} 15. Qd2 {[%clk
0:02:30.4]} 15... Bxf4 {[%clk 0:02:12.9]} 16. Qxf4 {[%clk 0:02:31.3]} 16... Qe7
{[%clk 0:02:08.7]} 17. Rd1 {[%clk 0:02:12.3]} 17... Re8 {[%clk 0:02:05.9]} 18.
g3 {[%clk 0:02:05.5]} 18... Qe5 {[%clk 0:02:03.8]} 19. Qxe5 {[%clk 0:02:04.6]}
19... Rxe5 {[%clk 0:02:04.7]} 20. f4 {[%clk 0:02:02.8]} 20... Re8 {[%clk
0:02:01.1]} 21. Kf2 {[%clk 0:02:02]} 21... Ne4+ {[%clk 0:01:59.4]} 22. Nxe4
{[%clk 0:02:01.5]} 22... Rxe4 {[%clk 0:02:00.3]} 23. d6 {[%clk 0:01:57.5]} 23...
cxd6 {[%clk 0:01:50]} 24. Bg2 {[%clk 0:01:54.2]} 24... Re2+ {[%clk 0:01:40.8]}
25. Kxe2 {[%clk 0:01:53.4]} 25... Bxg2 {[%clk 0:01:41.7]} 26. Rxd6 {[%clk
0:01:53.5]} 26... Bc6 {[%clk 0:01:41.6]} 27. Ke3 {[%clk 0:01:52.9]} 27... Kf8
{[%clk 0:01:40.5]} 28. c4 {[%clk 0:01:51.9]} 28... Ke7 {[%clk 0:01:41.4]} 29.
Rd2 {[%clk 0:01:52]} 29... d6 {[%clk 0:01:39]} 30. b4 {[%clk 0:01:47]} 30... f5
{[%clk 0:01:36.8]} 31. a3 {[%clk 0:01:44.3]} 31... a6 {[%clk 0:01:35.7]} 32. Kd4
{[%clk 0:01:44.7]} 32... h6 {[%clk 0:01:31.1]} 33. c5 {[%clk 0:01:44]} 33...
bxc5+ {[%clk 0:01:28.4]} 34. bxc5 {[%clk 0:01:44.9]} 34... dxc5+ {[%clk
0:01:29]} 35. Kxc5 {[%clk 0:01:45.8]} 35... Bb5 {[%clk 0:01:27.8]} 36. Rd6
{[%clk 0:01:45.2]} 36... g5 {[%clk 0:01:25.8]} 37. Rxh6 {[%clk 0:01:41.9]} 37...
gxf4 {[%clk 0:01:24]} 38. gxf4 {[%clk 0:01:42.8]} 38... Kf7 {[%clk 0:01:22.4]}
39. Kd5 {[%clk 0:01:42.5]} 39... Kg7 {[%clk 0:01:20.5]} 40. Rb6 {[%clk
0:01:41.8]} 40... Bd3 {[%clk 0:01:19.4]} 41. Ke5 {[%clk 0:01:42.2]} 41... Kf7
{[%clk 0:01:12.5]} 42. Rf6+ {[%clk 0:01:43.1]} 42... Kg7 {[%clk 0:01:11.2]} 43.
Rxf5 {[%clk 0:01:44]} 1-0

[Event "*** Titled Tuesday Blitz"]
[Site "Chess.com"]
[Date "2021.02.02"]
[Round "1"]
[White "MoreChessJulia"]
[Black "DiogenesSinopeus"]
[Result "0-1"]
[WhiteElo "2148"]
[BlackElo "2516"]
[TimeControl "180+1"]
[EndTime "10:05:09 PST"]
[Termination "DiogenesSinopeus won by checkmate"]

1. d4 {[%clk 0:03:00.7]} 1... Nf6 {[%clk 0:02:58.8]} 2. Bg5 {[%clk 0:02:59]}
2... e6 {[%clk 0:02:58.9]} 3. Nd2 {[%clk 0:02:58.7]} 3... Nc6 {[%clk 0:02:57.5]}
4. e3 {[%clk 0:02:58.2]} 4... b6 {[%clk 0:02:55.3]} 5. f4 {[%clk 0:02:57.7]}
5... Bb7 {[%clk 0:02:36.6]} 6. Ngf3 {[%clk 0:02:56.6]} 6... h6 {[%clk
0:02:21.4]} 7. Bxf6 {[%clk 0:02:51.6]} 7... Qxf6 {[%clk 0:02:22.3]} 8. Bd3
{[%clk 0:02:49.9]} 8... Nb4 {[%clk 0:02:19.6]} 9. O-O {[%clk 0:02:47.5]} 9...
Nxd3 {[%clk 0:01:54]} 10. cxd3 {[%clk 0:02:46.5]} 10... Qd8 {[%clk 0:01:41.5]}
11. e4 {[%clk 0:02:45.1]} 11... g6 {[%clk 0:01:26.8]} 12. Nc4 {[%clk 0:02:30.6]}
12... Bg7 {[%clk 0:01:24.6]} 13. Ne3 {[%clk 0:02:29.3]} 13... O-O {[%clk
0:01:15.5]} 14. h4 {[%clk 0:02:27.9]} 14... f5 {[%clk 0:01:04.5]} 15. e5 {[%clk
0:02:26.7]} 15... Bxf3 {[%clk 0:01:01.1]} 16. Qxf3 {[%clk 0:02:23.8]} 16... Qxh4
{[%clk 0:01:01.3]} 17. Qb7 {[%clk 0:02:15.6]} 17... Qd8 {[%clk 0:00:55.8]} 18.
Rac1 {[%clk 0:02:12.5]} 18... c6 {[%clk 0:00:56.3]} 19. Qa6 {[%clk 0:02:10.6]}
19... g5 {[%clk 0:00:53]} 20. Nc4 {[%clk 0:02:09.5]} 20... gxf4 {[%clk
0:00:48.3]} 21. Rxf4 {[%clk 0:02:08.6]} 21... Qg5 {[%clk 0:00:47]} 22. Rcf1
{[%clk 0:02:07.6]} 22... Kh8 {[%clk 0:00:44]} 23. Nd6 {[%clk 0:02:06.7]} 23...
Qe7 {[%clk 0:00:33.3]} 24. Qa4 {[%clk 0:01:54.6]} 24... Rg8 {[%clk 0:00:33.3]}
25. Qd1 {[%clk 0:01:52.5]} 25... Bf8 {[%clk 0:00:32.2]} 26. R1f3 {[%clk
0:01:38.4]} 26... Qg7 {[%clk 0:00:31.3]} 27. Nc4 {[%clk 0:01:32.1]} 27... Qxg2#
{[%clk 0:00:30.8]} 0-1

[Event "*** Titled Tuesday Blitz"]
[Site "Chess.com"]
[Date "2021.02.02"]
[Round "1"]
[White "Tpros"]
[Black "Nachsueb"]
[Result "1-0"]
[WhiteElo "2519"]
[BlackElo "2172"]
[TimeControl "180+1"]
[EndTime "10:05:12 PST"]
[Termination "Tpros won by resignation"]

1. d4 {[%clk 0:02:56.7]} 1... Nf6 {[%clk 0:02:59.8]} 2. e3 {[%clk 0:02:47.1]}
2... d5 {[%clk 0:02:57]} 3. Be2 {[%clk 0:02:46.9]} 3... Nc6 {[%clk 0:02:55.7]}
4. b3 {[%clk 0:02:46.6]} 4... e5 {[%clk 0:02:55.5]} 5. dxe5 {[%clk 0:02:46.5]}
5... Nxe5 {[%clk 0:02:56]} 6. Nf3 {[%clk 0:02:46.4]} 6... Bd6 {[%clk 0:02:55.6]}
7. Bb2 {[%clk 0:02:46.4]} 7... Qe7 {[%clk 0:02:47.3]} 8. Nbd2 {[%clk 0:02:45.6]}
8... O-O {[%clk 0:02:46.8]} 9. Nxe5 {[%clk 0:02:43.8]} 9... Bxe5 {[%clk
0:02:46.8]} 10. Bxe5 {[%clk 0:02:43.8]} 10... Qxe5 {[%clk 0:02:47.7]} 11. O-O
{[%clk 0:02:44]} 11... Bf5 {[%clk 0:02:42.2]} 12. c4 {[%clk 0:02:40]} 12... Rad8
{[%clk 0:02:40.1]} 13. Qc1 {[%clk 0:02:39.4]} 13... c6 {[%clk 0:02:38.8]} 14.
Nf3 {[%clk 0:02:39]} 14... Qe7 {[%clk 0:02:37.2]} 15. Rd1 {[%clk 0:02:39]} 15...
Ne4 {[%clk 0:02:29.4]} 16. Qb2 {[%clk 0:02:37.9]} 16... Qf6 {[%clk 0:02:21.2]}
17. Qxf6 {[%clk 0:02:36.8]} 17... Nxf6 {[%clk 0:02:22.1]} 18. h3 {[%clk
0:02:35]} 18... Rfe8 {[%clk 0:02:19.8]} 19. Rac1 {[%clk 0:02:34.3]} 19... dxc4
{[%clk 0:02:14.1]} 20. Bxc4 {[%clk 0:02:35.2]} 20... Kf8 {[%clk 0:02:11.3]} 21.
g4 {[%clk 0:02:33.9]} 21... Be4 {[%clk 0:02:08.8]} 22. Ng5 {[%clk 0:02:31.8]}
22... Bd5 {[%clk 0:02:07.5]} 23. Bxd5 {[%clk 0:02:31.3]} 23... Nxd5 {[%clk
0:02:08.4]} 24. Nxh7+ {[%clk 0:02:30.2]} 24... Ke7 {[%clk 0:02:07.2]} 25. Ng5
{[%clk 0:02:30.9]} 25... Rh8 {[%clk 0:01:54.1]} 26. Kg2 {[%clk 0:02:29.5]} 26...
Nb4 {[%clk 0:01:52.4]} 27. a3 {[%clk 0:02:21.1]} 27... Nd3 {[%clk 0:01:51.3]}
28. Rb1 {[%clk 0:02:20.3]} 28... Ne5 {[%clk 0:01:50.7]} 29. Kg3 {[%clk
0:02:16.7]} 29... f6 {[%clk 0:01:49.5]} 30. Ne4 {[%clk 0:02:16.2]} 30... b6
{[%clk 0:01:44.1]} 31. b4 {[%clk 0:02:13.9]} 31... Rc8 {[%clk 0:01:38.2]} 32.
Rbc1 {[%clk 0:02:11.6]} 32... Nd7 {[%clk 0:01:36.8]} 33. h4 {[%clk 0:02:09]}
33... a5 {[%clk 0:01:31.7]} 34. h5 {[%clk 0:02:09]} 34... axb4 {[%clk
0:01:30.9]} 35. axb4 {[%clk 0:02:09.9]} 35... Ne5 {[%clk 0:01:30.8]} 36. Rc3
{[%clk 0:02:01.4]} 36... Rhf8 {[%clk 0:01:22.6]} 37. Nd6 {[%clk 0:01:59]} 37...
Rc7 {[%clk 0:01:14.2]} 38. Nf5+ {[%clk 0:01:58.9]} 38... Kf7 {[%clk 0:01:12.5]}
39. Rdc1 {[%clk 0:01:50.1]} 39... Rfc8 {[%clk 0:01:11.9]} 40. Nd6+ {[%clk
0:01:50.1]} 40... Ke6 {[%clk 0:01:11.4]} 41. Nxc8 {[%clk 0:01:51]} 41... Rxc8
{[%clk 0:01:11.5]} 42. f4 {[%clk 0:01:51.6]} 1-0

[Event "*** Titled Tuesday Blitz"]
[Site "Chess.com"]
[Date "2021.02.02"]
[Round "1"]
[White "Yaacovn"]
[Black "manmanlai1"]
[Result "1-0"]
[WhiteElo "2882"]
[BlackElo "2453"]
[TimeControl "180+1"]
[EndTime "10:05:13 PST"]
[Termination "Yaacovn won by resignation"]

1. d4 {[%clk 0:02:50.7]} 1... Nf6 {[%clk 0:02:57.1]} 2. e3 {[%clk 0:02:40.9]}
2... e6 {[%clk 0:02:50.1]} 3. Bd3 {[%clk 0:02:40]} 3... c5 {[%clk 0:02:50.1]} 4.
c3 {[%clk 0:02:38.3]} 4... b6 {[%clk 0:02:50.2]} 5. f4 {[%clk 0:02:37.9]} 5...
Bb7 {[%clk 0:02:50.2]} 6. Nf3 {[%clk 0:02:25.8]} 6... Nc6 {[%clk 0:02:49.6]} 7.
O-O {[%clk 0:02:25.3]} 7... Rc8 {[%clk 0:02:45.7]} 8. e4 {[%clk 0:02:21.6]} 8...
cxd4 {[%clk 0:02:45.6]} 9. cxd4 {[%clk 0:02:21.2]} 9... Nb4 {[%clk 0:02:45.7]}
10. Nc3 {[%clk 0:02:21.3]} 10... Nxd3 {[%clk 0:02:41.7]} 11. Qxd3 {[%clk
0:02:22.2]} 11... Bb4 {[%clk 0:02:40.5]} 12. e5 {[%clk 0:02:17.5]} 12... Nd5
{[%clk 0:02:33.8]} 13. Ne4 {[%clk 0:02:17.3]} 13... h6 {[%clk 0:02:30.8]} 14.
Bd2 {[%clk 0:02:06.2]} 14... Be7 {[%clk 0:02:30.4]} 15. Ng3 {[%clk 0:02:01]}
15... d6 {[%clk 0:02:27]} 16. f5 {[%clk 0:01:58.5]} 16... O-O {[%clk 0:02:06.2]}
17. f6 {[%clk 0:01:52.3]} 17... gxf6 {[%clk 0:02:02.3]} 18. Bxh6 {[%clk
0:01:47.9]} 18... f5 {[%clk 0:02:02.1]} 19. Nxf5 {[%clk 0:01:39.2]} 19... exf5
{[%clk 0:01:51.4]} 20. Qxf5 {[%clk 0:01:40.1]} 20... Bf6 {[%clk 0:01:17.1]} 21.
Qg4+ {[%clk 0:01:23.4]} 21... Kh7 {[%clk 0:01:13.2]} 22. Bxf8 {[%clk 0:01:16.2]}
22... Qxf8 {[%clk 0:01:10.3]} 23. exf6 {[%clk 0:01:15]} 23... Nxf6 {[%clk
0:01:00.9]} 24. Ng5+ {[%clk 0:01:14.7]} 24... Kg6 {[%clk 0:00:58.6]} 25. Rxf6+
{[%clk 0:01:12]} 25... Kxf6 {[%clk 0:00:58.4]} 26. Rf1+ {[%clk 0:01:12.6]} 1-0

[Event "*** Titled Tuesday Blitz"]
[Site "Chess.com"]
[Date "2021.02.02"]
[Round "1"]
[White "Thjop"]
[Black "Fischerev7"]
[Result "1-0"]
[WhiteElo "2674"]
[BlackElo "2361"]
[TimeControl "180+1"]
[EndTime "10:05:16 PST"]
[Termination "Thjop won by resignation"]

1. e4 {[%clk 0:03:00.9]} 1... c5 {[%clk 0:03:00.2]} 2. Nf3 {[%clk 0:03:01.1]}
2... d6 {[%clk 0:03:00.8]} 3. g3 {[%clk 0:03:00]} 3... Nf6 {[%clk 0:03:00.2]} 4.
d3 {[%clk 0:03:00.1]} 4... g6 {[%clk 0:03:00.2]} 5. Bg2 {[%clk 0:03:00.3]} 5...
Bg7 {[%clk 0:03:00]} 6. O-O {[%clk 0:03:01.2]} 6... O-O {[%clk 0:03:00.6]} 7.
Nc3 {[%clk 0:03:01.2]} 7... Nc6 {[%clk 0:03:01]} 8. h3 {[%clk 0:03:01.6]} 8...
Rb8 {[%clk 0:03:01.5]} 9. a4 {[%clk 0:03:02.2]} 9... a6 {[%clk 0:03:00.5]} 10.
Be3 {[%clk 0:03:02.8]} 10... h6 {[%clk 0:02:59.8]} 11. Qd2 {[%clk 0:03:02.7]}
11... Kh7 {[%clk 0:03:00.4]} 12. Nh4 {[%clk 0:03:02.6]} 12... e5 {[%clk
0:02:46.5]} 13. f4 {[%clk 0:02:51.9]} 13... exf4 {[%clk 0:02:45.2]} 14. gxf4
{[%clk 0:02:52.2]} 14... Ng4 {[%clk 0:02:26.6]} 15. hxg4 {[%clk 0:02:28.5]}
15... Qxh4 {[%clk 0:02:25.6]} 16. f5 {[%clk 0:02:10.4]} 16... Be5 {[%clk
0:02:24.1]} 17. Bf3 {[%clk 0:01:51.3]} 17... gxf5 {[%clk 0:02:07.4]} 18. exf5
{[%clk 0:01:49.5]} 18... Bxf5 {[%clk 0:02:07.1]} 19. Qf2 {[%clk 0:01:25.1]}
19... Bg3 {[%clk 0:01:36.5]} 20. Qg2 {[%clk 0:01:21.2]} 20... Bxg4 {[%clk
0:01:33.6]} 21. Bxg4 {[%clk 0:01:21.3]} 21... Qxg4 {[%clk 0:01:34.5]} 22. Ne4
{[%clk 0:01:19.4]} 22... Bh2+ {[%clk 0:01:00.3]} 23. Kxh2 {[%clk 0:01:16.3]}
23... Qh5+ {[%clk 0:00:54.4]} 24. Qh3 {[%clk 0:01:11.4]} 1-0